bitfinex-derivatives/quotes_BTCF0:USTF0_20240917
["timestamp","ask_amount","ask_price","bid_price","bid_amount"]
[1726602867100,0.0024921,60202.0,60193.0,0.3608]
[1726602867297,0.24851675,60201.0,60193.0,0.3608]
[1726602867503,0.08304,60197.0,60193.0,0.3608]
[1726602867899,0.083042,60195.0,60193.0,0.3608]
[1726602868405,0.083043,60194.0,60193.0,0.3608]
[1726602868609,0.083043,60194.0,60193.0,0.3618]
[1726602869603,0.083043,60194.0,60193.0,0.001]
[1726602869811,0.08305,60189.0,60188.0,0.00249217]
[1726602870295,0.08305,60189.0,60188.0,0.36329217]
[1726602870497,0.083044,60194.0,60188.0,0.36329217]
[1726602870699,0.083044,60194.0,60193.0,0.3608]
[1726602871309,0.083044,60194.0,60188.0,0.36329217]
[1726602871310,0.08305,60189.0,60188.0,0.00249217]
[1726602871505,0.08205,60189.0,60188.0,0.00249217]
[1726602872112,0.08105,60189.0,60188.0,0.00249217]
[1726602872308,0.1641,60189.0,60188.0,0.00249217]
[1726602872502,0.25068732,60189.0,60174.0,0.00249274]
[1726602872702,0.083067,60177.0,60174.0,0.00249274]
[1726602872915,0.08307,60175.0,60174.0,0.00249274]
[1726602873306,0.00249295,60179.0,60174.0,0.36329274]
[1726602873504,0.08555695,60179.0,60174.0,0.36329274]
[1726602873712,0.083066,60178.0,60174.0,0.36329274]
[1726602873917,0.08307,60175.0,60174.0,0.36329274]
[1726602874313,0.00249295,60179.0,60174.0,0.36329274]
[1726602874511,0.00249295,60179.0,60174.0,0.36325274]
[1726602874706,0.08307,60175.0,60174.0,0.3608]
[1726602874912,0.8008,60177.0,60174.0,0.001]
[1726602875213,0.08307,60175.0,60174.0,0.001]
[1726602875409,0.083075,60172.0,60165.0,0.00249315]
[1726602875809,0.883867,60177.0,60165.0,0.00249315]
[1726602875810,0.083077,60170.0,60165.0,0.00249315]
[1726602876203,0.883867,60177.0,60165.0,0.00249315]
[1726602876404,0.00249295,60179.0,60172.0,0.3608]
[1726602876608,0.00249295,60179.0,60177.0,0.3608]
[1726602877013,0.00249295,60179.0,60172.0,0.3608]
[1726602877213,0.00249295,60179.0,60177.0,0.3608]
[1726602878516,0.08555795,60179.0,60177.0,0.3608]
[1726602878713,0.003,60177.0,60171.0,0.3608]
[1726602878920,0.086067,60177.0,60171.0,0.3608]
[1726602879126,0.44,60175.0,60165.0,0.00349315]
[1726602879418,0.083073,60173.0,60167.0,0.3608]
[1726602879611,0.082073,60173.0,60167.0,0.44388]
[1726602879814,0.44,60175.0,60167.0,0.3608]
[1726602880021,0.083076,60171.0,60167.0,0.3608]
[1726602880323,0.083082,60166.0,60165.0,0.002]
[1726602880713,0.3608,60168.0,60165.0,0.002]
[1726602880913,0.3608,60173.0,60165.0,0.002]
[1726602881129,0.08308,60168.0,60165.0,0.3628]
[1726602881318,0.083076,60171.0,60165.0,0.002]
[1726602881627,0.3608,60174.0,60165.0,0.002]
[1726602881812,0.083077,60170.0,60165.0,0.002]
[1726602882217,0.083077,60170.0,60165.0,0.001]
[1726602882415,0.083077,60170.0,60167.0,0.001]
[1726602883131,0.005,60170.0,60165.0,0.085083]
[1726602883424,0.005,60170.0,60165.0,0.002]
[1726602883624,0.005,60170.0,60169.0,0.083078]
[1726602883825,0.005,60170.0,60169.0,0.443878]
[1726602884918,0.00249337,60174.0,60169.0,0.3608]
[1726602885228,0.00249337,60174.0,60173.0,0.083072]
[1726602885417,0.00249337,60174.0,60169.0,0.3618]
[1726602885915,0.00633574,60186.0,60170.0,0.18162006]
[1726602886121,0.44,60187.0,60183.0,0.09897906]
[1726602886326,0.083056,60185.0,60184.0,0.12662278]
[1726602886521,0.083056,60185.0,60184.0,0.28074669]
[1726602886721,1.181536,60185.0,60184.0,0.28074669]
[1726602887116,1.264592,60185.0,60184.0,0.12662278]
[1726602887317,1.264592,60185.0,60184.0,0.28074792]
[1726602887518,1.09848,60185.0,60181.0,0.11600633]
[1726602887820,0.166126,60180.0,60179.0,0.11601858]
[1726602888025,0.083068,60176.0,60175.0,0.11601998]
[1726602888217,0.8008,60176.0,60168.0,0.13069478]
[1726602888523,0.8008,60176.0,60162.0,0.16594899]
[1726602888524,0.083084,60165.0,60163.0,0.13069478]
[1726602888722,0.083084,60165.0,60164.0,0.18167152]
[1726602889023,0.579724,60165.0,60164.0,0.18167152]
[1726602889218,1.179724,60165.0,60164.0,0.18167152]
[1726602889424,1.179724,60165.0,60164.0,0.18163152]
[1726602890015,0.083085,60164.0,60163.0,0.001]
[1726602890421,0.081924,60165.0,60163.0,0.001]
[1726602890422,0.00084,60165.0,60163.0,0.001]
[1726602890724,0.083085,60164.0,60163.0,0.001]
[1726602890919,0.3608,60169.0,60163.0,0.001]
[1726602890920,0.0855746,60168.0,60163.0,0.001]
[1726602891122,0.0855746,60168.0,60164.0,0.001]
[1726602891123,0.083082,60166.0,60164.0,0.001]
[1726602891330,0.0024936,60168.0,60164.0,0.001]
[1726602891331,0.002,60165.0,60164.0,0.002]
[1726602891513,0.002,60165.0,60164.0,0.085085]
[1726602891713,0.002,60165.0,60164.0,0.001]
[1726602891920,0.0024936,60168.0,60163.0,0.001]
[1726602892124,0.0044936,60168.0,60163.0,0.002]
[1726602892322,0.0044936,60168.0,60164.0,0.001]
[1726602892524,0.0044936,60168.0,60167.0,0.3608]
[1726602892722,0.0044936,60168.0,60167.0,0.443881]
[1726602893024,0.0024936,60168.0,60167.0,0.3608]
[1726602893621,0.0024936,60168.0,60164.0,0.002]
[1726602894027,0.0024936,60168.0,60166.0,0.3608]
[1726602894329,0.083075,60171.0,60166.0,0.3608]
[1726602894521,0.002,60168.0,60167.0,0.001]
[1726602894827,0.002,60168.0,60167.0,0.002]
[1726602895212,0.002,60168.0,60167.0,0.001]
[1726602895413,0.002,60168.0,60166.0,0.3628]
[1726602896018,0.002,60168.0,60167.0,0.002]
[1726602896420,0.085079,60168.0,60167.0,0.002]
[1726602896817,0.525079,60168.0,60167.0,0.002]
[1726602897023,0.525079,60168.0,60153.0,0.3608]
[1726602897024,0.16617,60164.0,60163.0,0.09942753]
[1726602897318,1.5406,60168.0,60153.0,0.3608]
[1726602897319,0.3608,60165.0,60161.0,0.09942753]
[1726602897522,0.3608,60165.0,60163.0,0.09942753]
[1726602897720,0.3588,60165.0,60163.0,0.09942753]
[1726602897926,0.00284,60168.0,60164.0,0.51496026]
[1726602898125,0.166164,60166.0,60165.0,0.1541554]
[1726602898326,0.083085,60164.0,60163.0,0.001]
[1726602898531,0.083085,60164.0,60163.0,0.33681764]
[1726602898728,0.16617,60164.0,60163.0,0.33681764]
[1726602899124,0.16617,60164.0,60163.0,0.33682368]
[1726602899324,0.16517,60164.0,60163.0,0.33682368]
[1726602899522,0.082085,60164.0,60163.0,0.33682368]
[1726602900037,0.002,60166.0,60163.0,0.33682368]
[1726602900329,0.083084,60165.0,60164.0,0.33582368]
[1726602900534,0.526968,60165.0,60164.0,0.15415634]
[1726602900835,0.166168,60165.0,60164.0,0.15415634]
[1726602901029,0.083106,60149.0,60148.0,0.13069478]
[1726602901230,0.77436612,60149.0,60148.0,0.33585112]
[1726602901432,0.083119,60139.0,60138.0,0.13279038]
[1726602901622,0.08560903,60143.0,60128.0,0.13279038]
[1726602901929,0.08560903,60143.0,60119.0,0.00249503]
[1726602901930,0.44,60138.0,60121.0,0.49359038]
[1726602902128,0.44,60138.0,60126.0,0.3608]
[1726602902326,0.083138,60126.0,60121.0,0.3608]
[1726602902534,0.523142,60123.0,60122.0,0.12672992]
[1726602903239,0.00088,60129.0,60122.0,0.20940852]
[1726602903426,0.08562726,60130.0,60126.0,0.0495161]
[1726602903620,0.44,60129.0,60126.0,0.0495161]
[1726602903835,0.522133,60129.0,60126.0,0.0495161]
[1726602904329,0.083135,60128.0,60123.0,0.0495161]
[1726602904722,0.083135,60128.0,60126.0,0.001]
[1726602904924,0.083136,60127.0,60126.0,0.001]
[1726602905228,0.083136,60127.0,60126.0,0.002]
[1726602907128,0.166272,60127.0,60126.0,0.002]
[1726602907328,0.083136,60127.0,60126.0,0.001]
[1726602907628,0.083139,60125.0,60123.0,0.001]
[1726602907831,0.44,60124.0,60123.0,0.001]
[1726602908235,0.006,60127.0,60119.0,0.36329503]
[1726602908436,0.529137,60127.0,60119.0,0.36329503]
[1726602908731,0.446,60127.0,60119.0,0.36329503]
[1726602908924,0.44,60127.0,60119.0,0.36329503]
[1726602909131,0.006,60124.0,60123.0,0.001]
[1726602909324,0.006,60124.0,60123.0,0.3628]
[1726602910437,0.00249526,60130.0,60129.0,0.083133]
[1726602910637,0.00249526,60130.0,60129.0,0.443933]
[1726602910826,0.3608,60141.0,60136.0,0.083123]
[1726602911029,0.3608,60141.0,60134.0,0.083126]
[1726602911236,0.00249503,60143.0,60134.0,0.443926]
[1726602911529,0.00249503,60143.0,60140.0,0.3608]
[1726602912734,0.008,60141.0,60140.0,0.3608]
[1726602913735,0.008,60141.0,60140.0,0.3618]
[1726602914441,0.00249503,60143.0,60140.0,0.3628]
[1726602914442,0.00349503,60143.0,60140.0,0.3628]
[1726602914834,0.00349503,60143.0,60140.0,0.3618]
[1726602915149,0.00349503,60143.0,60140.0,0.3628]
[1726602915334,0.001,60141.0,60140.0,0.445918]
[1726602915931,0.8008,60154.0,60140.0,0.3618]
[1726602916232,0.002,60143.0,60140.0,0.3628]
[1726602916929,0.002,60143.0,60142.0,0.083115]
[1726602917631,0.0024945,60147.0,60142.0,0.083115]
[1726602917838,0.0024945,60147.0,60146.0,0.3608]
[1726602918537,1.4620945,60147.0,60130.0,0.3608]
[1726602918740,0.44,60132.0,60130.0,0.3608]
[1726602918939,0.00249473,60136.0,60131.0,0.08313]
[1726602919135,0.00249473,60136.0,60135.0,0.3608]
[1726602919136,0.00149473,60136.0,60135.0,0.3608]
[1726602920743,0.08313,60131.0,60130.0,0.001]
[1726602920940,0.88393,60131.0,60130.0,0.001]
[1726602921543,1.98185,60131.0,60130.0,0.001]
[1726602921748,0.083132,60130.0,60123.0,0.3608]
[1726602922043,0.25052619,60129.0,60123.0,0.3608]
[1726602922240,0.29,60124.0,60116.0,0.3608]
[1726602922435,0.29,60134.0,60121.0,0.3608]
[1726602922635,0.083129,60132.0,60121.0,0.3608]
[1726602922842,0.29,60134.0,60126.0,0.3608]
[1726602923649,0.29,60129.0,60126.0,0.3608]
[1726602924243,0.083135,60128.0,60126.0,0.3608]
[1726602924443,0.083136,60127.0,60126.0,0.3618]
[1726602924637,0.083136,60127.0,60126.0,0.3628]
[1726602924948,0.083136,60127.0,60126.0,0.002]
[1726602925745,0.083136,60127.0,60126.0,0.001]
[1726602926044,0.002,60129.0,60126.0,0.3628]
[1726602926738,0.292,60129.0,60126.0,0.3628]
[1726602926939,0.083136,60127.0,60126.0,0.002]
[1726602927132,0.083136,60127.0,60126.0,0.001]
[1726602927444,0.086136,60127.0,60126.0,0.002]
[1726602928542,0.003,60127.0,60126.0,0.3628]
[1726602929144,0.086136,60127.0,60126.0,0.002]
[1726602929347,0.003,60127.0,60126.0,0.002]
[1726602930249,0.086136,60127.0,60126.0,0.002]
[1726602930545,0.376136,60127.0,60126.0,0.002]
[1726602931845,0.086136,60127.0,60126.0,0.002]
[1726602932048,0.376136,60127.0,60126.0,0.002]
[1726602933046,0.293,60127.0,60126.0,0.002]
[1726602933246,0.376136,60127.0,60126.0,0.002]
[1726602934252,0.003,60127.0,60126.0,0.445937]
[1726602935152,0.00743037,60136.0,60126.0,0.86176]
[1726602935153,0.00049473,60136.0,60126.0,0.86176]
[1726602935356,0.00049473,60136.0,60135.0,0.3608]
[1726602935749,0.00049473,60136.0,60132.0,0.3608]
[1726602936050,0.00049473,60136.0,60132.0,0.443929]
[1726602936252,0.00349473,60136.0,60132.0,0.3608]
[1726602936443,0.00349473,60136.0,60135.0,0.083125]
[1726602937059,0.00449473,60136.0,60135.0,0.083125]
[1726602937552,0.00449473,60136.0,60135.0,0.001]
[1726602937753,0.00049473,60136.0,60135.0,0.001]
[1726602937947,0.00449473,60136.0,60135.0,0.002]
[1726602938352,0.08761873,60136.0,60135.0,0.002]
[1726602938750,0.09460743,60136.0,60135.0,0.002]
[1726602938958,0.08761873,60136.0,60135.0,0.002]
[1726602939158,0.0897547,60136.0,60135.0,0.002]
[1726602939347,1.72326979,60136.0,60120.0,0.083145]
[1726602939548,0.29,60122.0,60117.0,0.36329502]
[1726602939748,0.29,60118.0,60117.0,0.36329502]
[1726602939948,0.29,60119.0,60117.0,0.36329502]
[1726602940360,0.25809506,60118.0,60117.0,0.36329502]
[1726602940954,0.25809506,60118.0,60117.0,0.44644502]
[1726602941165,0.25809506,60118.0,60117.0,0.36329502]
[1726602941461,0.61889506,60118.0,60104.0,0.00249566]
[1726602941655,0.29,60114.0,60104.0,0.00249566]
[1726602942051,0.29,60114.0,60105.0,0.083166]
[1726602942359,0.25809506,60110.0,60106.0,0.083165]
[1726602942656,0.29,60107.0,60104.0,0.00249566]
[1726602943158,0.25809506,60110.0,60109.0,0.083161]
[1726602943366,0.25695909,60110.0,60109.0,0.443961]
[1726602944149,0.25695909,60110.0,60109.0,0.3608]
[1726602944865,0.25695909,60110.0,60104.0,0.00449566]
[1726602945159,0.29,60106.0,60104.0,0.00449566]
[1726602945553,0.25695909,60105.0,60104.0,0.00449566]
[1726602946857,0.25695909,60105.0,60104.0,0.00249566]
[1726602947756,0.25695909,60105.0,60104.0,0.08966366]
[1726602948162,0.25695909,60105.0,60104.0,0.09166366]
[1726602948359,0.25695909,60105.0,60104.0,0.09566366]
[1726602949063,0.00249576,60114.0,60104.0,0.74646366]
[1726602949252,0.00249576,60114.0,60113.0,0.443955]
[1726602950064,0.00249516,60126.0,60125.0,0.083139]
[1726602950267,0.00249516,60126.0,60125.0,0.3608]
[1726602951056,0.00249516,60126.0,60125.0,0.443939]
[1726602951670,0.00249516,60126.0,60125.0,0.444939]
[1726602952868,0.00549516,60126.0,60125.0,0.445939]
[1726602954469,0.083114,60144.0,60138.0,0.08312]
[1726602954671,0.083114,60144.0,60139.0,0.083119]
[1726602954968,0.443914,60143.0,60139.0,0.083119]
[1726602955168,0.083116,60142.0,60137.0,0.3608]
[1726602955365,0.29,60140.0,60137.0,0.3608]
[1726602955858,0.083121,60138.0,60130.0,0.083131]
[1726602956063,0.083121,60138.0,60128.0,0.00249465]
[1726602956064,0.083121,60138.0,60132.0,0.3608]
[1726602956267,0.29,60140.0,60132.0,0.3608]
[1726602956458,0.29,60135.0,60132.0,0.3608]
[1726602956867,0.083127,60134.0,60132.0,0.3608]
[1726602957259,0.083127,60134.0,60132.0,0.3618]
[1726602957566,0.29,60135.0,60132.0,0.3628]
[1726602957567,0.083128,60133.0,60132.0,0.3628]
[1726602957770,0.083128,60133.0,60132.0,0.001]
[1726602958072,0.083128,60133.0,60132.0,0.002]
[1726602958258,1.625936,60133.0,60132.0,0.002]
[1726602958458,1.7077676,60133.0,60118.0,0.3608]
[1726602958662,0.29,60119.0,60118.0,0.3608]
[1726602958867,0.00249511,60123.0,60105.0,0.3608]
[1726602959068,0.29,60110.0,60105.0,0.3608]
[1726602959265,0.29,60110.0,60106.0,0.083164]
[1726602959660,0.289,60110.0,60106.0,0.083164]
[1726602959863,0.288,60110.0,60106.0,0.083164]
[1726602960873,0.288,60110.0,60106.0,0.085164]
[1726602961366,0.288,60110.0,60106.0,0.002]
[1726602963475,0.288,60110.0,60106.0,0.085165]
[1726602964266,0.288,60110.0,60107.0,0.083163]
[1726602964468,0.288,60110.0,60106.0,0.002]
[1726602964469,0.29718735,60116.0,60109.0,0.08316]
[1726602964663,0.29,60116.0,60109.0,0.08316]
[1726602964858,0.29,60116.0,60106.0,0.002]
[1726602965069,0.373151,60116.0,60106.0,0.002]
[1726602965369,0.6508,60121.0,60110.0,0.3608]
[1726602965773,0.29,60116.0,60110.0,0.443959]
[1726602965967,0.29,60111.0,60110.0,0.3608]
[1726602967370,0.293,60111.0,60110.0,0.3608]
[1726602968379,0.293,60111.0,60110.0,0.44396]
[1726602969573,0.003,60111.0,60110.0,0.44396]
[1726602971063,2.13673786,60111.0,60093.0,0.06834661]
[1726602971265,0.6508,60097.0,60083.0,0.002]
[1726602971468,0.29,60089.0,60079.0,0.3608]
[1726602971777,0.29,60089.0,60079.0,0.444002]
[1726602972079,0.3608,60091.0,60079.0,0.444002]
[1726602972465,0.00249665,60101.0,60100.0,0.083173]
[1726602972664,0.002,60111.0,60100.0,0.083173]
[1726602972665,0.002,60111.0,60100.0,1.14996]
[1726602972881,0.002,60111.0,60110.0,0.001]
[1726602973277,0.083157,60112.0,60110.0,0.001]
[1726602973469,0.083157,60112.0,60106.0,0.3608]
[1726602973470,0.083156,60113.0,60106.0,0.3608]
[1726602973664,0.3608,60114.0,60101.0,0.00249578]
[1726602973980,0.00716616,60119.0,60101.0,0.00249578]
[1726602973981,0.29,60104.0,60101.0,0.00249578]
[1726602974182,0.083166,60106.0,60101.0,0.00249578]
[1726602974478,0.29,60102.0,60101.0,0.00249578]
[1726602975567,0.29,60102.0,60101.0,0.00349578]
[1726602976279,0.00249604,60108.0,60106.0,0.083164]
[1726602976475,0.00249604,60108.0,60104.0,0.3608]
[1726602976685,0.00249604,60108.0,60101.0,0.00449578]
[1726602977073,0.001,60102.0,60101.0,0.00449578]
[1726602977374,0.291,60102.0,60101.0,0.00449578]
[1726602977575,0.291,60102.0,60075.0,0.06630661]
[1726602977576,0.3608,60088.0,60070.0,0.06630661]
[1726602977777,0.54041887,60102.0,60064.0,0.29]
[1726602977778,0.3608,60071.0,60064.0,0.29]
[1726602977965,0.3608,60076.0,60064.0,0.6]
[1726602978167,0.3608,60071.0,60059.0,0.29249752]
[1726602978367,0.3608,60071.0,60069.0,0.083216]
[1726602978575,0.3608,60071.0,60070.0,0.582615]
[1726602978576,0.3598,60071.0,60070.0,0.582615]
[1726602978779,0.00249679,60084.0,60075.0,0.083207]
[1726602978981,0.3608,60079.0,60076.0,0.2566]
[1726602979480,0.3608,60079.0,60071.0,0.00249637]
[1726602979481,0.29,60078.0,60071.0,0.00249637]
[1726602979870,0.3598,60079.0,60075.0,0.001]
[1726602980071,0.6588,60079.0,60076.0,0.001]
[1726602980267,0.3688,60079.0,60076.0,0.001]
[1726602980470,0.3708,60079.0,60076.0,0.002]
[1726602981968,0.3728,60079.0,60078.0,0.083204]
[1726602982370,0.00249679,60084.0,60083.0,0.083197]
[1726602982682,0.00249679,60084.0,60083.0,0.582517]
[1726602982874,0.3608,60094.0,60083.0,0.49932]
[1726602983079,0.3608,60094.0,60093.0,0.083183]
[1726602983773,0.00249635,60098.0,60093.0,1.09924]
[1726602983976,0.3608,60102.0,60097.0,0.29]
[1726602984180,0.083182,60095.0,60094.0,0.002]
[1726602984484,0.083182,60095.0,60089.0,0.00249615]
[1726602984485,0.29,60098.0,60089.0,0.00249615]
[1726602984780,0.082187,60090.0,60089.0,0.00249615]
[1726602984986,0.371187,60090.0,60089.0,0.00249615]
[1726602986477,0.368187,60090.0,60089.0,0.00349615]
[1726602986877,0.370187,60090.0,60089.0,0.00449615]
[1726602987073,1.14054251,60090.0,60057.0,0.3608]
[1726602987280,1.14054251,60090.0,60067.0,0.06630661]
[1726602987281,0.3608,60076.0,60067.0,0.06630661]
[1726602987482,0.00149701,60080.0,60069.0,0.42710661]
[1726602987784,0.00149701,60080.0,60075.0,0.00249668]
[1726602988177,0.08369901,60080.0,60075.0,0.00249668]
[1726602988587,0.083207,60076.0,60075.0,0.00249668]
[1726602988792,0.734007,60076.0,60075.0,0.00249668]
[1726602988980,0.734007,60076.0,60075.0,0.00349668]
[1726602990684,0.739007,60076.0,60075.0,0.00449668]
[1726602991388,0.6558,60076.0,60075.0,0.00449668]
[1726602992176,0.739007,60076.0,60075.0,0.00449668]
[1726602992481,0.739007,60076.0,60057.0,0.06630661]
[1726602992482,0.083221,60066.0,60057.0,0.06630661]
[1726602992683,0.29,60060.0,60055.0,0.06630661]
[1726602992880,0.29,60060.0,60055.0,0.14954261]
[1726602993075,0.3608,60062.0,60053.0,0.06630661]
[1726602993281,0.29,60060.0,60054.0,0.083236]
[1726602993491,0.29,60060.0,60053.0,0.06630661]
[1726602993674,0.3608,60062.0,60054.0,0.06630661]
[1726602993881,0.3608,60062.0,60061.0,0.083227]
[1726602994585,0.3598,60062.0,60061.0,0.083227]
[1726602995077,0.32315384,60062.0,60061.0,0.083227]
[1726602995274,0.32815384,60062.0,60061.0,0.083227]
[1726602997392,0.083229,60061.0,60057.0,0.083232]
[1726602997689,0.083229,60060.0,60057.0,0.083232]
[1726602997988,0.083229,60060.0,60053.0,0.06630661]
[1726602998183,0.083229,60060.0,60052.0,0.06630661]
[1726602998376,0.083229,60060.0,60053.0,0.083237]
[1726602998698,0.083229,60060.0,60054.0,0.083237]
[1726602998991,0.083229,60060.0,60049.0,0.42710661]
[1726602999180,0.083229,60060.0,60050.0,0.06630661]
[1726602999583,0.083229,60060.0,60051.0,0.06630661]
[1726603000184,0.085229,60060.0,60057.0,0.083233]
[1726603000377,0.005,60060.0,60057.0,0.083233]
[1726603000578,0.005,60060.0,60059.0,0.08572752]
[1726603002188,0.005,60060.0,60059.0,0.00249752]
[1726603002488,0.23169329,60060.0,60059.0,0.28376494]
[1726603002696,0.31492229,60060.0,60059.0,0.12935627]
[1726603002895,0.23169329,60060.0,60059.0,0.28376523]
[1726603003188,0.29809595,60062.0,60059.0,0.28376523]
[1726603003394,0.29809595,60062.0,60061.0,0.09918157]
[1726603003583,0.58809595,60062.0,60061.0,0.12685875]
[1726603003785,0.50486995,60062.0,60061.0,0.21008575]
[1726603003980,0.58809695,60062.0,60056.0,0.083234]
[1726603004182,0.50986995,60062.0,60057.0,0.15441052]
[1726603004386,0.50986995,60062.0,60061.0,0.09921348]
[1726603004587,0.50986995,60062.0,60058.0,0.083231]
[1726603004788,0.51186995,60062.0,60059.0,0.15440874]
[1726603005089,0.50886995,60062.0,60060.0,0.15440874]
[1726603005293,0.50886995,60062.0,60059.0,0.083229]
[1726603005495,0.50486995,60062.0,60060.0,0.15440625]
[1726603005695,0.50486995,60062.0,60061.0,0.15440625]
[1726603005995,0.50486995,60062.0,60061.0,0.23763325]
[1726603006198,0.21486995,60062.0,60061.0,0.23763325]
[1726603006691,0.21686995,60062.0,60061.0,0.23763325]
[1726603006899,0.21886995,60062.0,60061.0,0.23763325]
[1726603007689,0.22086995,60062.0,60061.0,0.23763325]
[1726603007891,0.22386995,60062.0,60061.0,0.23763325]
[1726603008391,0.009,60062.0,60061.0,0.23763325]
[1726603009098,0.3608,60082.0,60076.0,0.083207]
[1726603009297,0.3608,60082.0,60079.0,0.083202]
[1726603009497,0.08369801,60080.0,60079.0,0.15436902]
[1726603010199,0.08369801,60080.0,60079.0,0.23757102]
[1726603010200,0.00049701,60080.0,60079.0,0.23757102]
[1726603010397,0.00049701,60080.0,60079.0,0.083202]
[1726603011203,0.00049701,60080.0,60079.0,0.084202]
[1726603011204,0.01449701,60080.0,60079.0,0.084202]
[1726603011387,0.02449701,60080.0,60079.0,0.085202]
[1726603014399,0.10769801,60080.0,60079.0,0.002]
[1726603015099,0.02449701,60080.0,60079.0,0.002]
[1726603017801,0.10769801,60080.0,60079.0,0.002]
[1726603018195,0.10769801,60080.0,60068.0,0.00249715]
[1726603018196,0.083209,60075.0,60068.0,0.08524849]
[1726603018400,0.083204,60078.0,60071.0,0.083213]
[1726603018605,0.3608,60076.0,60071.0,0.083213]
[1726603019000,0.08321,60074.0,60068.0,0.16846649]
[1726603019201,0.19,60075.0,60068.0,0.00249715]
[1726603019202,0.083214,60071.0,60068.0,0.00249715]
[1726603019509,0.444016,60069.0,60068.0,0.00349715]
[1726603019710,0.083209,60074.0,60068.0,0.00349715]
[1726603020005,0.083211,60073.0,60068.0,0.00349715]
[1726603020205,0.194,60075.0,60068.0,0.00349715]
[1726603020206,0.3608,60069.0,60068.0,0.00349715]
[1726603020399,0.004,60074.0,60068.0,0.00449715]
[1726603020400,0.08721,60074.0,60068.0,0.00449715]
[1726603020600,0.3608,60071.0,60068.0,0.002]
[1726603021001,0.004,60074.0,60073.0,0.083211]
[1726603021197,0.016,60074.0,60073.0,0.083211]
[1726603021603,0.016,60074.0,60073.0,0.21003903]
[1726603021797,0.00249718,60075.0,60073.0,0.29300152]
[1726603022002,0.00249718,60075.0,60073.0,0.16617349]
[1726603022412,0.00249718,60075.0,60068.0,0.10130161]
[1726603022413,0.00249718,60075.0,60074.0,0.083209]
[1726603023508,0.00849718,60075.0,60074.0,0.084209]
[1726603024213,0.006,60075.0,60074.0,0.084209]
[1726603024603,0.015,60075.0,60074.0,0.085209]
[1726603025909,0.015,60075.0,60074.0,0.275209]
[1726603026306,0.015,60075.0,60074.0,0.35817149]
[1726603026501,0.083189,60090.0,60089.0,0.083187]
[1726603026813,0.083183,60093.0,60092.0,0.083184]
[1726603027016,0.083184,60092.0,60091.0,0.04974479]
[1726603027200,0.083184,60092.0,60088.0,0.19]
[1726603027401,0.083191,60087.0,60083.0,0.42430898]
[1726603027614,0.083191,60087.0,60086.0,0.04972457]
[1726603027815,0.19,60090.0,60089.0,0.001]
[1726603027816,0.365374,60090.0,60089.0,0.001]
[1726603028418,0.083187,60090.0,60089.0,0.001]
[1726603029000,0.092187,60090.0,60089.0,0.001]
[1726603029211,0.092187,60090.0,60089.0,0.002]
[1726603031511,0.009,60090.0,60089.0,0.002]
[1726603032710,0.009,60090.0,60089.0,0.085189]
[1726603033606,0.009,60090.0,60089.0,0.002]
[1726603034007,0.009,60090.0,60089.0,0.085189]
[1726603035610,0.009,60090.0,60089.0,0.275189]
[1726603035911,0.009,60090.0,60089.0,0.857618]
[1726603036713,0.092187,60090.0,60089.0,0.002]
[1726603037014,0.166392,60084.0,60083.0,0.00249655]
[1726603037217,0.356392,60084.0,60083.0,0.00249655]
[1726603037416,0.273196,60084.0,60083.0,0.00249655]
[1726603038310,0.274196,60084.0,60083.0,0.00349655]
[1726603038811,0.274196,60084.0,60083.0,0.00449655]
[1726603039011,0.274196,60084.0,60083.0,0.002]
[1726603049521,0.191,60084.0,60083.0,0.002]
[1726603050026,0.191,60084.0,60083.0,0.085197]
[1726603050222,0.191,60084.0,60083.0,0.002]
[1726603050419,0.274196,60084.0,60083.0,0.002]
[1726603052524,0.191,60084.0,60083.0,0.002]
[1726603053215,0.274196,60084.0,60083.0,0.002]
[1726603054113,0.0832,60081.0,60068.0,0.351418]
[1726603054319,0.083221,60066.0,60061.0,0.444027]
[1726603054531,0.19,60065.0,60064.0,0.083223]
[1726603054726,0.19,60065.0,60062.0,0.04972418]
[1726603054923,0.3608,60063.0,60061.0,0.04972418]
[1726603055125,0.3608,60063.0,60060.0,0.0024975]
[1726603055724,0.3608,60063.0,60062.0,0.083226]
[1726603055919,0.083226,60062.0,60060.0,0.0024975]
[1726603056237,0.5508,60061.0,60060.0,0.0024975]
[1726603056530,0.634027,60061.0,60046.0,0.083247]
[1726603056734,0.19,60047.0,60046.0,0.083247]
[1726603057417,0.19,60047.0,60045.0,0.0095447]
[1726603057621,0.19,60048.0,60045.0,0.0095447]
[1726603058021,0.19,60048.0,60045.0,0.0927937]
[1726603058221,0.19,60048.0,60046.0,0.008]
[1726603058435,0.19,60048.0,60046.0,0.098248]
[1726603058634,0.19,60048.0,60046.0,0.015]
[1726603058831,0.19,60048.0,60046.0,0.007]
[1726603060034,0.19,60048.0,60045.0,0.0265447]
[1726603060339,0.3608,60050.0,60049.0,0.083244]
[1726603061637,0.3608,60050.0,60049.0,0.087244]
[1726603061834,0.444036,60055.0,60051.0,0.083241]
[1726603062035,0.083237,60054.0,60051.0,0.083241]
[1726603062439,0.083237,60054.0,60049.0,0.009]
[1726603062440,0.08324,60052.0,60049.0,0.009]
[1726603062641,0.23158606,60052.0,60051.0,0.04972418]
[1726603062933,0.083241,60051.0,60050.0,0.04972418]
[1726603063139,0.081241,60051.0,60050.0,0.04972418]
[1726603063840,0.078241,60051.0,60050.0,0.04972418]
[1726603064031,0.078241,60051.0,60050.0,0.05272418]
[1726603064231,0.19,60052.0,60050.0,0.05272418]